[Event "Frauenbundesliga 2021-22"]
[Site "Germany"]
[Date "2022.05.28"]
[Round "10.3"]
[White "Schleining, Zoya"]
[Black "Savina, Anastasia"]
[Result "1/2-1/2"]
[ECO "C50"]
[WhiteElo "2329"]
[BlackElo "2348"]
[Annotator "TA"]
[PlyCount "102"]
[EventDate "2021.11.26"]
[EventType "team-tourn"]
[EventCountry "GER"]
[SourceTitle "playchess.com"]
[Source "ChessBase"]
[SourceQuality "1"]
[WhiteTeam "Deizisau"]
[BlackTeam "Bad Koenigshofen"]
[TimeControl "40/5400+30:1800+30"]

{[%evp 12,102,18,0,10,0,44,43,45,40,45,44,110,15,15,12,5,17,12,-35,-17,-121,32,31,37,44,33,43,54,47,50,55,58,0,13,0,38,0,27,8,16,0,0,0,0,0,0,0,0,0,0,0,0,0,0,0,0,0,0,0,0,0,0,0,0,0,0,0,0,0,0,0,0,0,0,0,0,0,0,0,0,0,0,0,0,0,0,0,0,0,0,0,0]} 1. e4 {[%emt 0:00:02]} e5 {[%emt 0:02:25]} 2. Nf3 {[%emt 0:00:20]} Nc6 {[%emt 0:00:04]} 3. Bc4 {[%emt 0:00:20]} Bc5 {[%emt 0:00:49]} 4. d3 {[%emt 0:00:32]} Nf6 {[%emt 0:00:46]} 5. Nc3 {[%emt 0:01:00]} O-O {[%emt 0:05:30]} 6. O-O {[%emt 0:04:11]} h6 {[%emt 0:03:22]} 7. h3 {[%emt 0:00:56]} a6 {[%emt 0:02:21] C50: Hungarian Defence and Giuoco Pianissimo.} 8. Be3 {[%emt 0:02:13] is cutting edge theory.} Ba7 {[%emt 0:16:10]} 9. Bxa7 {[%emt 0:01:16]} Rxa7 {[%emt 0:00:04] [#] White is slightly better.} 10. d4 $146 {[%emt 0:03:50]} ({Predecessor:} 10. a4 d6 11. d4 exd4 12. Nxd4 Nxd4 13. Qxd4 Ra8 14. Rfd1 Be6 15. Bxe6 fxe6 16. e5 {1-0 (43) Surowka,M (1681)-Doluhanova,E (2212) Chess.com INT 2021}) 10... exd4 {[%emt 0:11:48]} 11. Nxd4 {[%emt 0:00:34]} Na5 {[%emt 0:01:39] [#]} (11... d6 $14) 12. Bd3 {[%emt 0:24:25] 0x0.001de03fb8f6dp-1022s more active pieces.} ({Better is} 12. e5 $1 $16 {[%cal Re5f6]}) 12... d6 $11 {[%emt 0:07:37]} 13. Qf3 {[%emt 0:08:24]} c5 {[%emt 0:08:24]} 14. Nf5 {[%emt 0:02:41]} Nc6 {[%emt 0:02:58]} 15. Rfe1 {[%emt 0:11:04]} (15. a4 $11) 15... Bxf5 $15 {[%emt 0:07:54]} 16. Qxf5 {[%emt 0:09:36] [#]} (16. exf5 $11 d5 17. Bf1) 16... Nd4 $2 {[%emt 0:05:12]} (16... c4 $1 $17 {[%cal Rc4d3]} 17. Bxc4 Nd4) 17. Qf4 $14 {[%emt 0:00:21]} b5 {[%emt 0:00:34]} 18. Nd5 $36 {[%emt 0:02:50][%mdl 2048] Black is under pressure.} c4 {[%emt 0:07:50]} 19. Qe3 {[%emt 0:03:54]} Nc6 {[%emt 0:00:59]} 20. Bf1 {[%emt 0:02:48]} Nxd5 {[%emt 0:01:31]} 21. exd5 {[%emt 0:00:09]} Re7 {[%emt 0:00:06]} 22. Qd2 {[%emt 0:00:52]} ({White should try} 22. Qa3 $1 $14 Ne5 23. Qxa6) 22... Ne5 {[%emt 0:01:56]} 23. b3 {[%emt 0:04:30]} Rfe8 {[%emt 0:05:39]} 24. bxc4 {[%emt 0:02:06]} bxc4 {[%emt 0:02:51]} 25. f4 {[%emt 0:02:38]} Nd7 {[%emt 0:00:16] The position is equal.} 26. Rxe7 {[%emt 0:04:08]} Qxe7 {[%emt 0:00:33]} 27. Bxc4 {[%emt 0:00:48]} Qf6 {[%emt 0:01:03]} 28. Rf1 {[%emt 0:00:43]} Nc5 {[%emt 0:00:30]} 29. Bd3 {[%emt 0:02:42]} Qd4+ {[%emt 0:02:39]} 30. Kh2 {[%emt 0:00:38][%cal Od3h7] And now Bh7+! would win.} Nxd3 {[%emt 0:01:16]} 31. Qxd3 {[%emt 0:00:32]} Qxd3 {[%emt 0:00:06]} 32. cxd3 $11 {[%emt 0:00:05][%mdl 4096] Endgame KR-KR} Rb8 {[%emt 0:01:05] Prevents Rb1.} 33. Rc1 {[%emt 0:00:17]} Rb5 {[%emt 0:00:19]} 34. Rc8+ {[%emt 0:00:44]} Kh7 {[%emt 0:00:02]} 35. Rc6 {[%emt 0:00:13]} Rxd5 {[%emt 0:00:10]} 36. Rxa6 {[%emt 0:00:08]} Rxd3 {[%emt 0:00:04]} 37. f5 {[%emt 0:02:14]} h5 {[%emt 0:01:22]} 38. Ra7 {[%emt 0:02:02]} f6 {[%emt 0:00:14]} 39. g4 {[%emt 0:00:39]} hxg4 {[%emt 0:01:19]} 40. hxg4 {[%emt 0:00:06]} Kh6 {[%emt 0:00:10]} 41. a4 {[%emt 0:30:27]} Ra3 {[%emt 0:06:37]} 42. Kg2 {[%emt 0:00:00]} d5 {[%emt 0:01:32][%cal Bd6d5,Bd5d4][%mdl 32]} 43. Kf2 {[%emt 0:00:00]} d4 {[%emt 0:08:23]} 44. a5 {[%emt 0:00:00]} Kg5 {[%emt 0:04:12]} 45. Rxg7+ {[%emt 0:00:00]} Kf4 {[%emt 0:00:05]} 46. Ke2 {[%emt 0:00:00]} Rxa5 {[%emt 0:02:48]} 47. Kd3 {[%emt 0:00:00]} Ra1 {[%emt 0:02:41]} 48. Kxd4 {[%emt 0:00:00]} Rd1+ {[%emt 0:00:03]} 49. Kc5 {[%emt 0:00:00]} Rg1 {[%emt 0:00:17]} 50. Rg6 {[%emt 0:00:00]} Rxg4 {[%emt 0:00:37]} 51. Rxf6 {[%emt 0:00:00]} Rg5 {[%emt 0:00:11] Weighted Error Value: White=0.15 (very precise) /Black=0.11 (very precise)} 1/2-1/2

[Event "Frauenbundesliga 2021-22"]
[Site "Germany"]
[Date "2022.05.28"]
[Round "10.4"]
[White "Obolentseva, Alexandra"]
[Black "Rapport, Jovana"]
[Result "1/2-1/2"]
[ECO "E94"]
[WhiteElo "2305"]
[BlackElo "2294"]
[Annotator "TA"]
[PlyCount "65"]
[EventDate "2021.11.26"]
[EventType "team-tourn"]
[EventCountry "GER"]
[SourceTitle "playchess.com"]
[Source "ChessBase"]
[SourceQuality "1"]
[WhiteTeam "Bad Koenigshofen"]
[BlackTeam "Deizisau"]
[TimeControl "40/5400+30:1800+30"]

{[%evp 15,65,24,26,29,44,43,41,39,41,-9,-15,-9,7,0,7,0,10,2,10,10,8,4,9,0,0,0,0,0,0,0,0,0,10,-8,0,0,0,0,0,0,1,0,7,4,6,0,0,0,6,0,8,0]} 1. d4 {[%emt 0:00:09]} Nf6 {[%emt 0:00:12]} 2. c4 {[%emt 0:00:11]} g6 {[%emt 0:00:05]} 3. Nc3 {[%emt 0:00:27]} Bg7 {[%emt 0:00:05]} 4. e4 {[%emt 0:00:07]} d6 {[%emt 0:00:05]} 5. Be2 {[%emt 0:00:05]} O-O {[%emt 0:01:11]} 6. Nf3 {[%emt 0:00:14]} e5 {[%emt 0:00:41]} 7. O-O {[%emt 0:00:09]} Na6 {[%emt 0:00:07]} 8. Re1 {[%emt 0:00:26]} Bg4 {[%emt 0:01:05]} 9. Be3 {[%emt 0:03:37][%cal Bc1e3,Be3d4,Bd4e5][%mdl 32] E94: King's Indian: Classical: 6 Be2 e5 7 0-0: Various Black 7th moves.} Bxf3 {[%emt 0:01:33]} 10. Bxf3 {[%emt 0:05:01]} exd4 {[%emt 0:00:02]} 11. Bxd4 {[%emt 0:00:00] White is slightly better.} ({But not} 11. Qxd4 {[#]} Ng4 $1 12. Qd2 (12. e5 Nxe5 13. Qd1 c6 $17) 12... Nxe3 13. Qxe3 Re8 $11) 11... c6 {[%emt 0:00:03] [#]} 12. e5 $146 {[%emt 0:13:30]} ({White should play} 12. Qd2 $14) ({Predecessor:} 12. Qd2 Qe7 13. Rad1 Rfd8 14. Qg5 Nc7 15. Qh4 Ne6 16. Be3 Qc7 17. Qg3 Nd7 18. Qxd6 {½-½ (31) Stevens,M (1484)-Eilering,D (1444) LSS email 2011}) 12... dxe5 $11 {[%emt 0:09:06] The position is equal.} 13. Bxe5 {[%emt 0:00:06]} Qxd1 {[%emt 0:00:07]} 14. Raxd1 {[%emt 0:00:10][%cal Ob2b4]} Rfd8 {[%emt 0:00:17]} 15. Kf1 {[%emt 0:07:28]} Ne8 {[%emt 0:13:30]} 16. Bxg7 {[%emt 0:01:00]} Kxg7 {[%emt 0:00:05]} 17. Ne4 {[%emt 0:01:14]} Rab8 {[%emt 0:11:01]} 18. a3 {[%emt 0:01:54]} Nf6 {[%emt 0:06:50]} 19. b4 {[%emt 0:05:42]} Nxe4 {[%emt 0:01:14]} 20. Rxe4 {[%emt 0:03:28]} Rxd1+ {[%emt 0:01:52]} 21. Bxd1 {[%emt 0:00:07][%mdl 4096] Endgame KRB-KRN} Rd8 {[%emt 0:03:34]} 22. Bf3 {[%emt 0:00:08]} Kf8 {[%emt 0:03:57] Inhibits Re7.} 23. Ke2 {[%emt 0:05:05]} h5 {[%emt 0:03:18]} 24. Ke3 {[%emt 0:04:45]} Nc7 {[%emt 0:03:12]} 25. Rd4 {[%emt 0:00:20]} Re8+ {[%emt 0:08:33]} 26. Kd3 {[%emt 0:03:39]} Ke7 {[%emt 0:00:11]} 27. Kc3 {[%emt 0:00:13]} Ne6 {[%emt 0:00:49]} 28. Rd3 {[%emt 0:02:16]} Rc8 {[%emt 0:01:27]} 29. g3 {[%emt 0:03:00]} b6 {[%emt 0:01:15]} 30. Re3 {[%emt 0:04:56]} Kd6 {[%emt 0:00:52]} 31. Rd3+ {[%emt 0:02:12]} Ke7 {[%emt 0:00:18]} 32. Re3 {[%emt 0:03:00]} Kd6 {[%emt 0:00:05]} 33. Rd3+ {[%emt 0:10:58] Weighted Error Value: White=0.04 (flawless) /Black=0.03 (flawless)} 1/2-1/2

[Event "Frauenbundesliga 2021-22"]
[Site "Germany"]
[Date "2022.05.28"]
[Round "10.6"]
[White "Schoene, Maria"]
[Black "Jelica, Mara"]
[Result "1/2-1/2"]
[ECO "B90"]
[WhiteElo "2222"]
[BlackElo "2121"]
[Annotator "TA"]
[PlyCount "139"]
[EventDate "2021.11.26"]
[EventType "team-tourn"]
[EventCountry "GER"]
[SourceTitle "playchess.com"]
[Source "ChessBase"]
[SourceQuality "1"]
[WhiteTeam "Bad Koenigshofen"]
[BlackTeam "Deizisau"]
[TimeControl "40/5400+30:1800+30"]

{[%evp 15,139,16,58,68,67,41,64,43,85,40,50,31,29,23,71,20,147,156,155,159,133,72,80,92,96,79,161,46,47,51,72,43,53,40,100,82,78,27,37,46,32,29,27,0,0,0,0,8,29,0,28,0,-13,-135,-136,-128,-96,-104,-99,-160,-153,-200,-195,-189,-178,-454,-454,-454,-454,-454,-454,-437,-277,-268,0,0,0,0,0,0,0,-8,0,-668,0,0,0,-556,0,0,0,0,0,-8,-8,-8,-8,-8,0,-8,-8,-8,0,0,0,0,0,0,0,-7,-7,-8,-7,-55,0,0,0,0,0,0,0,0,0,0,0,0]} 1. e4 {[%emt 0:00:03]} c5 {[%emt 0:00:02]} 2. Nf3 {[%emt 0:00:09]} d6 {[%emt 0:00:03]} 3. d4 {[%emt 0:00:07]} cxd4 {[%emt 0:00:03]} 4. Nxd4 {[%emt 0:00:07]} Nf6 {[%emt 0:00:01]} 5. Nc3 {[%emt 0:00:09]} a6 {[%emt 0:00:03]} 6. Be3 {[%emt 0:00:20]} e5 {[%emt 0:00:05]} 7. Nb3 {[%emt 0:00:31]} Be6 {[%emt 0:00:06]} 8. f4 {[%emt 0:00:50][%cal Bf2f4,Bf4f5][%mdl 32]} Qc7 {[%emt 0:00:22]} 9. f5 {[%emt 0:03:56] B90: Sicilian Najdorf: Unusual White 6th moves, 6 Be3 Ng4 and 6 Be3 e5.} Bc4 {[%emt 0:00:06]} 10. Bxc4 {[%emt 0:27:13]} (10. g4 $5 {[%cal Rg4g5]}) 10... Qxc4 {[%emt 0:00:02]} 11. Qf3 {[%emt 0:00:08] White is slightly better.} b5 {[%emt 0:02:08]} 12. O-O-O {[%emt 0:01:53]} Nbd7 {[%emt 0:03:20]} 13. Kb1 {[%emt 0:10:46]} Rc8 {[%emt 0:01:46]} 14. Rc1 {[%emt 0:07:54]} Be7 {[%emt 0:10:27] [#]} (14... h6) (14... b4 $11 15. Nd2 Qc6) 15. Rhd1 $146 {[%emt 0:07:37]} (15. g4 $16) ({Predecessor:} 15. g4 b4 16. Nd2 Qc6 17. Nd5 Nxd5 18. exd5 Qb7 19. g5 Kd8 20. Rhd1 Nb6 21. Bxb6+ Qxb6 {1-0 (49) Abdrashev,A (1767)-Mohammad Fahad,R (2028) Al Ain 2013}) 15... O-O {[%emt 0:11:42] [#]} (15... b4 $11 {remains equal.} 16. Nd2 Qc6) 16. g4 $1 $16 {[%emt 0:02:14]} b4 {[%emt 0:04:08]} 17. Nd2 {[%emt 0:02:04]} Qc7 {[%emt 0:05:34] [#]} 18. Nd5 {[%emt 0:00:05]} (18. Ne2 $142 $1) 18... Nxd5 {[%emt 0:00:26]} 19. exd5 {[%emt 0:00:04]} f6 {[%emt 0:02:52] Against g5} 20. Ne4 {[%emt 0:00:51]} Nb6 {[%emt 0:01:27]} (20... Qb7 $16) 21. Bxb6 {[%emt 0:01:19]} ({White should try} 21. c3 $18) 21... Qxb6 $14 {[%emt 0:00:02]} 22. h4 {[%emt 0:08:30]} Rc4 {[%emt 0:00:52]} 23. Rd2 {[%emt 0:03:12][%cal Bd1d2,Bd2g2,Bg2g4][%mdl 32]} (23. b3 $5 {[%cal Rb3c4]} Rc7 24. g5 $14) 23... a5 {[%emt 0:04:49]} 24. Re1 {[%emt 0:05:38]} Rfc8 {[%emt 0:08:56]} (24... Kh8 $14) 25. g5 {[%emt 0:01:54]} fxg5 {[%emt 0:05:20]} 26. hxg5 {[%emt 0:05:03] White is much more active.} (26. f6 $16 Bxf6 27. hxg5 (27. Nxf6+ gxf6 28. Qxf6 Rf8 $11) 27... Rxe4 28. Qxe4 Bxg5 29. Rg2 (29. Qf5 Qd8 $14)) 26... Rxe4 $1 $11 {[%emt 0:04:21]} 27. Qxe4 {[%emt 0:00:04][%cal Of5f6]} Bxg5 {[%emt 0:00:04]} 28. Rg2 {[%emt 0:00:08]} Bf6 {[%emt 0:06:39]} 29. Rg4 {[%emt 0:00:29]} Qf2 {[%emt 0:03:30][%cal Oc8c4] Strongly threatening ...Rc4!} 30. Rh1 {[%emt 0:00:52]} Rc5 {[%emt 0:01:08]} 31. Qd3 {[%emt 0:02:31]} h5 {[%emt 0:03:26]} 32. Rg6 {[%emt 0:06:40]} h4 {[%emt 0:01:50]} 33. Rc1 {[%emt 0:01:51]} Qd4 {[%emt 0:01:31]} 34. Qxd4 {[%emt 0:01:14]} (34. b3 $11) 34... exd4 {[%emt 0:00:01][%mdl 4096] Endgame KRR-KRB} 35. Rf1 {[%emt 0:01:00]} Rxd5 {[%emt 0:00:06]} 36. Kc1 {[%emt 0:00:02]} Kf7 {[%emt 0:00:05]} 37. Rg4 {[%emt 0:00:10]} (37. Kd2 $142) 37... d3 $17 {[%emt 0:00:36]} 38. cxd3 {[%emt 0:00:19]} (38. Kd2 $17) 38... Rxd3 $19 {[%emt 0:00:08]} 39. Kc2 {[%emt 0:00:15]} Re3 {[%emt 0:01:16]} 40. Rd1 $2 {[%emt 0:01:25]} (40. Kd2 Rh3 41. Ke2) 40... Re2+ {[%emt 0:11:17]} 41. Rd2 {[%emt 0:30:39]} Rxd2+ {[%emt 0:31:03]} 42. Kxd2 {[%emt 0:00:04] KR-KB} h3 {[%emt 0:01:43] aiming for ...h2.} 43. Rg3 {[%emt 0:00:00]} h2 {[%emt 0:00:00]} 44. Rh3 {[%emt 0:00:00]} Bxb2 $2 {[%emt 0:00:00]} (44... Be5 $19 {Hoping for ...Kf6.} 45. Ke3 d5) 45. Rxh2 $11 {[%emt 0:00:00]} Kf6 {[%emt 0:00:00]} 46. Kc2 {[%emt 0:00:00]} Be5 {[%emt 0:00:00]} 47. Rf2 {[%emt 0:00:00]} a4 {[%emt 0:00:00]} 48. Kd3 {[%emt 0:00:00]} d5 {[%emt 0:00:00]} 49. Ke3 $2 {[%emt 0:00:00][%mdl 8192]} (49. Kc2 $11) 49... Bc3 $2 {[%emt 0:00:00]} (49... a3 $19 50. Rg2 Kxf5 51. Rf2+ Ke6) 50. Kd3 $1 {[%emt 0:00:00]} Be5 {[%emt 0:00:00]} 51. Ke3 $2 {[%emt 0:00:00][%mdl 8192]} (51. Kc2 $11 {and White is okay.}) 51... Bc3 $2 {[%emt 0:00:00]} (51... a3 $19 {Threatens to win with ...Bb2.} 52. Rg2 Kxf5 53. Rf2+ Ke6) 52. Kd3 $1 {[%emt 0:00:00]} Ba1 {[%emt 0:00:00]} 53. Rf1 {[%emt 0:00:00]} Be5 {[%emt 0:00:00]} 54. Rf2 {[%emt 0:00:00]} b3 {[%emt 0:00:18]} 55. axb3 {[%emt 0:00:00]} axb3 {[%emt 0:00:01]} 56. Rf1 {[%emt 0:00:00]} Ke7 {[%emt 0:00:42]} 57. Rb1 {[%emt 0:00:00]} b2 {[%emt 0:00:04]} 58. Rf1 {[%emt 0:00:00]} Kd6 {[%emt 0:00:07]} 59. Kc2 {[%emt 0:00:00]} Kc5 {[%emt 0:01:40]} 60. Kb3 {[%emt 0:00:00]} Kd6 {[%emt 0:02:02]} 61. Kc2 {[%emt 0:00:00]} Ke7 {[%emt 0:01:00]} 62. Rd1 {[%emt 0:00:00]} Kf6 {[%emt 0:00:23]} 63. Rf1 {[%emt 0:00:00]} Kg5 {[%emt 0:00:30]} 64. Kb1 {[%emt 0:00:00]} (64. Kb3 $11) 64... Bf4 {[%emt 0:01:36]} (64... Bc3 $1 $15) 65. Rg1+ $1 {[%emt 0:00:00] The position is equal.} Kxf5 {[%emt 0:00:40] ...g5 is the strong threat.} 66. Rxg7 {[%emt 0:00:00]} Be5 {[%emt 0:01:14]} 67. Rd7 {[%emt 0:00:03]} Ke4 {[%emt 0:00:10]} 68. Kc2 {[%emt 0:00:36]} Bf6 {[%emt 0:01:14]} 69. Rd6 $1 {[%emt 0:01:10]} Be5 {[%emt 0:00:19]} 70. Rd7 {[%emt 0:00:24] Never resign too early!  Weighted Error Value: White=0.50/Black=0.35} 1/2-1/2

[Event "Frauenbundesliga 2021-22"]
[Site "Germany"]
[Date "2022.05.28"]
[Round "10.7"]
[White "Socko, Monika"]
[Black "Cyfka, Karina"]
[Result "1/2-1/2"]
[ECO "E04"]
[WhiteElo "2384"]
[BlackElo "2404"]
[Annotator "TA"]
[PlyCount "105"]
[EventDate "2021.11.26"]
[EventType "team-tourn"]
[EventCountry "GER"]
[SourceTitle "playchess.com"]
[Source "ChessBase"]
[SourceQuality "1"]
[WhiteTeam "Hamburger SK"]
[BlackTeam "Leipzig"]
[TimeControl "40/5400+30:1800+30"]

{[%evp 11,105,10,19,45,43,62,48,40,98,93,129,126,135,142,191,191,193,183,196,187,204,160,160,149,152,158,159,170,166,156,294,209,554,541,858,874,798,290,272,252,430,377,348,125,121,88,82,97,106,73,75,42,45,-32,-20,-28,-28,-38,0,0,0,0,0,0,16,0,87,8,108,86,68,87,103,63,104,18,25,0,0,0,0,0,8,0,8,0,0,0,0,0,0,0,0,0,0,0]} 1. d4 {[%emt 0:00:02]} Nf6 {[%emt 0:00:09]} 2. c4 {[%emt 0:00:03]} e6 {[%emt 0:00:13]} 3. g3 {[%emt 0:00:04]} d5 {[%emt 0:00:55]} 4. Bg2 {[%emt 0:00:08]} dxc4 {[%emt 0:00:18]} 5. Nf3 {[%emt 0:01:32]} Bb4+ {[%emt 0:00:31]} 6. Bd2 {[%emt 0:02:04]} a5 {[%emt 0:00:29]} 7. Qc2 {[%emt 0:02:33] E04: Open Catalan: 5 Nf3.} b5 {[%emt 0:07:55]} 8. a4 $1 {[%emt 0:00:16]} bxa4 {[%emt 0:11:45]} 9. Ne5 {[%emt 0:09:26] [#] White is slightly better.} Bxd2+ $146 {[%emt 0:08:27]} (9... Ra6 $1 $14) ({Predecessor:} 9... Ra6 10. Qxa4+ Bd7 11. Nxd7 Qxd7 12. O-O O-O 13. Qxd7 Nfxd7 14. Bxb4 axb4 15. Rxa6 Nxa6 {1-0 (77) Tkachiev,V (2632)-Moiseenko,A (2570) Santo Domingo 2002}) 10. Nxd2 $16 {[%emt 0:03:21][%cal Bb1d2,Bd2b3,Bb3c5][%mdl 32]} Nd5 {[%emt 0:00:07]} 11. Qxa4+ {[%emt 0:02:21]} Bd7 {[%emt 0:02:54]} 12. Qxc4 {[%emt 0:03:13]} c6 {[%emt 0:04:54]} (12... O-O $16 {was worth a try.} 13. Bxd5 exd5 14. Qxd5 Ra6) 13. O-O $18 {[%emt 0:01:45]} O-O {[%emt 0:00:32]} 14. Nb3 {[%emt 0:03:52]} Qb6 {[%emt 0:05:00]} 15. Nc5 {[%emt 0:04:19]} Bc8 {[%emt 0:03:44]} 16. Rfc1 {[%emt 0:02:42]} Ba6 {[%emt 0:10:28]} 17. Qc2 {[%emt 0:04:58] Black must now prevent Ncd7.} Ra7 {[%emt 0:00:37] Against Ncd7} 18. Qd2 {[%emt 0:08:16]} Bb5 {[%emt 0:02:37]} 19. Ra3 {[%emt 0:01:40] White is much more active.} Rd8 {[%emt 0:05:59]} 20. g4 {[%emt 0:02:18]} Ne7 {[%emt 0:10:45]} (20... f6 $16 {is a better defense.}) 21. Rh3 {[%emt 0:15:35]} (21. Qf4 Ng6 22. Nxg6 hxg6 $16) 21... Na6 $2 {[%emt 0:00:05]} (21... Nd7 {is more resistant.}) 22. Qg5 {[%emt 0:06:28] Strongly threatening Qh5.} Ng6 {[%emt 0:12:16]} 23. Nxg6 {[%emt 0:01:48]} fxg6 {[%emt 0:00:40] [#]} 24. Qh4 $2 {[%emt 0:07:53]} (24. Rxh7 $3 {[%mdl 512]} Nxc5 25. Qxg6 Rxd4 26. Qh5 (26. Rh5 Rf7 $16)) 24... h6 {[%emt 0:00:13]} 25. g5 {[%emt 0:00:10]} (25. Nxe6 $6 Re8 $18) 25... h5 {[%emt 0:03:04]} (25... Nxc5 26. gxh6 (26. dxc5 Qc7 $16) (26. Rxc5 Qxc5 27. dxc5 Rd1+ 28. Bf1 Bxe2 $11) 26... Bxe2) 26. Qe4 {[%emt 0:00:58]} (26. Nxe6 Re8 $16) 26... Nxc5 {[%emt 0:01:59]} 27. dxc5 {[%emt 0:00:34]} (27. Rxc5 $18 {and the rest is easy.} Rf7 28. Bf3 (28. Qxe6 Rxd4 29. Rf5 Bc4 $18) (28. Qxg6 Bxe2 29. Rc2 Bg4 $17)) 27... Qc7 $16 {[%emt 0:00:27]} 28. Qxg6 {[%emt 0:05:25]} Qf7 {[%emt 0:00:10]} 29. Qe4 {[%emt 0:03:41]} Qf5 {[%emt 0:01:00]} 30. Qxf5 {[%emt 0:01:36]} exf5 {[%emt 0:00:02]} 31. Re3 {[%emt 0:00:07] Prevents Re7.} Kf7 {[%emt 0:02:32]} 32. g6+ {[%emt 0:01:33]} (32. b3 $14) 32... Kf6 $1 $15 {[%emt 0:00:48][%mdl 1024] Black has compensation.} ({But not} 32... Kxg6 {[#]} 33. Bxc6 $1 Bxc6 34. Re6+ Kf7 35. Rxc6 $14) 33. Bf3 {[%emt 0:00:26]} h4 {[%emt 0:01:22]} 34. Kg2 {[%emt 0:00:49]} Rd2 {[%emt 0:00:37]} 35. b3 {[%emt 0:00:03]} a4 {[%emt 0:01:53]} 36. bxa4 {[%emt 0:01:04]} Rxa4 {[%emt 0:00:08]} 37. Kh3 {[%emt 0:00:30]} Raa2 {[%emt 0:01:24][%cal Rb5e2]} 38. Kxh4 {[%emt 0:01:14]} Rac2 {[%emt 0:00:34]} (38... Bxe2 $11 {keeps the balance.} 39. Bxc6 Rd4+ 40. Kh3 Bg4+ 41. Kg2 Rdd2) 39. Ra1 {[%emt 0:01:29]} (39. Rxc2 $16 Rxc2 40. Kh5) 39... Rxc5 {[%emt 0:00:43]} (39... Bxe2 $11 {remains equal.} 40. Rxe2 Rxe2 41. Bxe2 Rxe2) 40. Ra7 {[%emt 0:00:38] Rf7+ is the strong threat.} Rd4+ {[%emt 0:00:53]} 41. Kh3 {[%emt 0:30:08]} Rd8 {[%emt 0:04:31]} (41... Kxg6 $2 42. Re6+ Kh7 43. Ree7 $16) 42. Ree7 {[%emt 0:00:00]} Rg8 {[%emt 0:00:06]} 43. e4 {[%emt 0:00:00]} (43. Rad7 $16) 43... Bd3 {[%emt 0:06:06]} 44. Kg3 {[%emt 0:00:00]} Bxe4 {[%emt 0:02:36] The position is equal.} 45. Bxe4 {[%emt 0:00:00]} fxe4 {[%emt 0:01:23]} 46. Rxe4 {[%emt 0:00:00]} Kxg6 $11 {[%emt 0:01:22][%mdl 4096] Endgame KRR-KRR} 47. h4 {[%emt 0:00:00]} Rc1 {[%emt 0:02:07]} 48. Ree7 {[%emt 0:00:00]} Kh6 {[%emt 0:03:40]} 49. Re6+ {[%emt 0:00:00]} Kh7 {[%emt 0:02:16]} 50. Rc7 {[%emt 0:00:00]} Rf8 {[%emt 0:01:47]} 51. Rexc6 {[%emt 0:00:00]} Rg1+ {[%emt 0:00:26]} 52. Kh2 {[%emt 0:00:00]} Rf1 {[%emt 0:00:43]} 53. Rc2 {[%emt 0:09:58] White really could win this.  Weighted Error Value: White=0.32/Black=0.27 (precise)} 1/2-1/2

[Event "Frauenbundesliga 2021-22"]
[Site "Germany"]
[Date "2022.05.28"]
[Round "10.8"]
[White "Kulon, Klaudia"]
[Black "Padmini, Rout"]
[Result "1-0"]
[ECO "A45"]
[WhiteElo "2305"]
[BlackElo "2348"]
[Annotator "TA"]
[PlyCount "61"]
[EventDate "2021.11.26"]
[EventType "team-tourn"]
[EventCountry "GER"]
[SourceTitle "playchess.com"]
[Source "ChessBase"]
[SourceQuality "1"]
[WhiteTeam "Leipzig"]
[BlackTeam "Hamburger SK"]
[TimeControl "40/5400+30:1800+30"]

{[%evp 9,61,15,13,6,9,2,10,12,18,12,31,5,12,5,57,0,0,0,0,0,0,0,0,0,0,-24,0,0,0,-7,0,-37,13,6,9,9,22,19,19,0,30,13,38,41,43,33,651,635,1194,1182,1885,1749,29998,29999]} 1. d4 {[%emt 0:00:03]} Nf6 {[%emt 0:00:17]} 2. Bg5 {[%emt 0:00:06]} g6 {[%emt 0:00:36]} 3. Bxf6 {[%emt 0:00:09]} exf6 {[%emt 0:00:07]} 4. c4 {[%emt 0:00:04]} d5 {[%emt 0:02:47]} 5. cxd5 {[%emt 0:01:03]} Qxd5 {[%emt 0:00:08]} 6. Nc3 {[%emt 0:00:06] A45: Trompowsky Attack.} Qd8 {[%emt 0:00:08]} 7. g3 {[%emt 0:01:20]} Bd6 {[%emt 0:00:50]} 8. Bg2 {[%emt 0:00:52] The position is equal.} c6 {[%emt 0:00:36]} 9. e3 {[%emt 0:01:47]} h5 {[%emt 0:10:35]} 10. h4 {[%emt 0:07:05] [#]} Bg4 $146 {[%emt 0:06:01]} ({Predecessor:} 10... O-O 11. Nge2 Nd7 12. O-O Nb6 13. Rc1 Bg4 14. Ne4 Be7 15. Nc5 Rb8 16. Qc2 Kg7 {0-1 (49) Djordjevic,V (2350)-Mchedlishvili,M (2570) Tornelo INT 2020}) 11. Nge2 {[%emt 0:02:04]} Nd7 {[%emt 0:03:13]} (11... O-O $11) 12. Qb3 {[%emt 0:11:40]} (12. d5 $1 $14) 12... Rb8 $11 {[%emt 0:03:21]} 13. O-O {[%emt 0:04:46]} g5 {[%emt 0:08:19]} 14. hxg5 {[%emt 0:11:10]} fxg5 {[%emt 0:05:13]} 15. e4 {[%emt 0:00:25][%cal Be3e4,Be4e5][%mdl 32]} h4 {[%emt 0:02:15]} 16. e5 $1 {[%emt 0:04:56]} Be7 {[%emt 0:02:38]} (16... h3 17. Be4 h2+ 18. Kh1 $16) 17. Rfe1 {[%emt 0:00:06]} Be6 {[%emt 0:06:59]} 18. d5 {[%emt 0:02:36]} cxd5 {[%emt 0:01:08]} 19. Bxd5 {[%emt 0:01:48]} Nc5 {[%emt 0:04:47]} 20. Qb5+ {[%emt 0:02:11]} Qd7 {[%emt 0:06:21]} (20... Kf8 $15 21. Bxe6 a6) 21. Rad1 {[%emt 0:04:34]} Qxb5 {[%emt 0:06:28]} (21... Rd8 {looks sharper.} 22. Nd4 Qxb5 23. Ndxb5 Kf8) 22. Nxb5 {[%emt 0:00:08][%cal Oe2d4]} a6 {[%emt 0:00:25]} 23. Nc7+ {[%emt 0:01:46]} Kf8 {[%emt 0:02:24]} 24. Nd4 {[%emt 0:05:18][%cal Rd5e6]} hxg3 {[%emt 0:05:56]} 25. fxg3 {[%emt 0:03:48] [#] Hoping for b4.} ({But not} 25. Ndxe6+ fxe6 26. Bxe6 (26. Nxe6+ Nxe6 27. Bxe6 Bc5 $17) 26... Nxe6 27. Nxe6+ Kf7 $11) 25... Bg4 {[%emt 0:02:54]} (25... Bh3 $5 {[%cal Rb8c8]} 26. Bg2 (26. b4 Rc8 $17) 26... Ne6 27. Bxh3 Nxd4 $14) 26. Rf1 $36 {[%emt 0:01:14][%mdl 2048] White fights for an advantage.} Rh7 {[%emt 0:00:47]} 27. Rd2 {[%emt 0:01:03][%cal Bd1d2,Bd2h2,Bh2h7,Bh7h8][%mdl 32] Threatens to win with Rh2.} Rc8 $2 {[%emt 0:02:25][%mdl 8192] A mistake that costs the game.} (27... Kg8 $14) 28. Rh2 $18 {[%emt 0:00:48]} Rxc7 {[%emt 0:11:14]} 29. Rxh7 {[%emt 0:00:32]} Ke8 {[%emt 0:00:18]} 30. Rfxf7 {[%emt 0:07:02]} Rd7 {[%emt 0:04:23]} 31. Rh8+ {[%emt 0:00:15] Weighted Error Value: White=0.09 (flawless) /Black=0.74} 1-0